bitfinex/quotes_ETHUSD_20260227
["timestamp","ask_amount","ask_price","bid_price","bid_amount"]
[1772199009204,3.288,1959.1,1955.3,2.354279]
[1772199009205,7.52296041,1958.9,1955.3,2.354279]
[1772199009403,7.52296041,1958.9,1954.9,1.27883779]
[1772199009404,30.0,1958.4,1955.0,10.420671]
[1772199009629,7.52296041,1958.3,1954.0,1.27942681]
[1772199009829,7.52296041,1957.8,1954.0,1.27942681]
[1772199010059,0.18685624,1957.9,1954.0,1.27942681]
[1772199010329,3.385425,1957.8,1954.0,1.27942681]
[1772199010532,2.14675,1957.8,1954.0,1.27942681]
[1772199011234,0.001,1957.8,1954.2,0.18685624]
[1772199011435,0.18685624,1957.6,1954.2,0.18685624]
[1772199011634,0.18685624,1957.6,1953.7,5.11841679]
[1772199011635,1.2771392,1957.5,1953.2,1.53541043]
[1772199011813,4.6743752,1957.5,1953.2,1.53541043]
[1772199012025,1.2771392,1957.5,1953.6,0.17170432]
[1772199012313,0.001,1957.8,1953.7,30.18685624]
[1772199012555,0.001,1957.8,1954.1,0.35856056]
[1772199012718,0.001,1957.8,1954.5,30.0]
[1772199013044,0.001,1957.8,1953.3,1.97932442]
[1772199013045,0.001,1957.8,1955.1,0.17170432]
[1772199013216,0.001,1957.8,1955.7,0.18685624]
[1772199013410,1.28552653,1959.2,1955.9,0.35856056]
[1772199013607,0.0094939,1959.2,1956.3,30.25239224]
[1772199013835,0.0094939,1959.2,1956.8,20.82488024]
[1772199014041,0.0094939,1959.2,1957.2,0.18685624]
[1772199014237,0.0094939,1959.2,1957.6,0.25239224]
[1772199014567,0.0036,1959.8,1957.8,0.065536]
[1772199014568,1.27924176,1959.8,1957.8,0.065536]
[1772199014772,1.27924176,1959.8,1956.6,0.10616832]
[1772199014773,0.065536,1959.5,1956.3,22.755607]
[1772199014948,0.065536,1959.5,1955.5,1.53358552]
[1772199014949,0.065536,1959.3,1956.7,0.065536]
[1772199015147,0.18685624,1959.0,1956.9,0.065536]
[1772199015341,1.27924176,1959.8,1956.3,30.0]
[1772199015538,1.27926418,1959.8,1956.4,0.35856056]
[1772199015767,0.0036,1959.8,1956.8,0.25239224]
[1772199015973,0.0036,1959.8,1957.0,0.25239224]
[1772199016172,0.0036,1959.8,1957.4,0.25239224]
[1772199016376,0.0036,1959.8,1957.7,30.0]
[1772199016559,0.0036,1959.8,1958.0,0.25239224]
[1772199016757,0.0036,1959.8,1958.1,2.420247]
[1772199017080,0.0036,1959.8,1957.9,0.065536]
[1772199017264,0.0036,1959.8,1958.2,26.52162]
[1772199017443,0.0036,1959.8,1958.4,10.11962]
[1772199017644,0.0036,1959.8,1958.5,1.2764871]
[1772199017939,0.0036,1959.8,1958.7,11.922497]
[1772199018138,0.0036,1959.8,1958.5,1.2764871]
[1772199018139,0.079912,1959.3,1958.5,1.2764871]
[1772199018343,0.0036,1959.8,1957.9,1.531]
[1772199018344,0.079912,1959.2,1958.1,1.27674786]
[1772199018569,0.0036,1959.8,1956.8,1.53303804]
[1772199018570,0.71926974,1958.7,1956.8,1.53303804]
[1772199018778,0.079912,1958.4,1957.0,30.0]
[1772199018955,0.079912,1958.4,1957.0,22.493219]
[1772199019275,0.71926974,1958.7,1957.0,30.0]
[1772199019441,2.95143431,1958.6,1957.0,3.03699]
[1772199019645,0.71926974,1958.7,1957.3,0.065536]
[1772199019877,0.71926974,1958.7,1957.4,15.947918]
[1772199020181,1.27570546,1959.7,1957.6,20.938018]
[1772199020384,2.95388884,1959.6,1957.6,3.550305]
[1772199020550,2.95388884,1959.5,1957.6,3.43312]
[1772199020752,0.18685624,1959.3,1957.2,1.27733496]
[1772199021059,0.065536,1959.6,1956.7,5.11012315]
[1772199021060,0.18685624,1958.7,1956.7,5.11012315]
[1772199021258,4.700951,1958.8,1956.6,5.11073724]
[1772199021259,0.18685624,1958.3,1956.6,5.11073724]
[1772199021467,0.18685624,1958.3,1956.0,5.11168085]
[1772199021468,0.18685624,1958.1,1956.2,5.11180733]
[1772199021671,1.2769435,1957.8,1956.0,10.902476]
[1772199021870,1e-08,1956.2,1956.1,2.96769]
[1772199022078,2.95388884,1957.6,1955.9,3.331251]
[1772199022276,2.95388884,1957.5,1956.1,23.502484]
[1772199022474,2.95388884,1957.4,1956.1,9.790229]
[1772199022651,1.27685731,1958.0,1956.1,9.790229]
[1772199022855,2.9615705,1957.9,1956.1,3.41514897]
[1772199023079,0.071982,1957.3,1956.1,3.450262]
[1772199023255,2.9615705,1957.7,1956.1,3.450262]
[1772199023562,2.9615705,1957.6,1956.1,3.450262]
[1772199023759,2.9615705,1957.5,1956.3,7.026108]
[1772199023988,2.9615705,1957.4,1956.3,0.0011]
[1772199024284,5.10752763,1957.9,1956.3,0.0011]
[1772199024285,2.9615705,1957.3,1956.3,0.0011]
[1772199024451,2.9615705,1957.2,1956.3,0.0011]
[1772199024658,2.9615705,1957.1,1956.3,0.0011]
[1772199024886,2.9615705,1957.0,1956.3,0.0011]
[1772199025054,2.9615705,1956.9,1956.3,0.0011]
[1772199025253,0.065536,1957.8,1956.3,0.0011]
[1772199025452,7.52296041,1958.3,1956.3,0.0011]
[1772199025453,5.89703789,1958.4,1956.5,0.065536]
[1772199025799,0.001,1959.7,1957.4,0.18685624]
[1772199025977,0.001,1959.7,1957.2,24.259101]
[1772199025978,4.45039659,1959.6,1957.6,6.453628]
[1772199026185,1.27672524,1959.7,1957.9,6.992448]
[1772199026388,0.001,1959.7,1958.0,0.065536]
[1772199026693,5.89703789,1960.5,1958.5,0.18685624]
[1772199026892,2.54104106,1961.5,1958.7,0.25239224]
[1772199027062,3.77707573,1961.8,1959.2,0.25239224]
[1772199027399,3.77707573,1961.8,1959.7,2.301845]
[1772199027400,1.27434937,1961.8,1959.7,2.301845]
[1772199027687,1.27420998,1962.0,1959.7,7.226503]
[1772199027887,2.58934307,1961.9,1959.8,2.477889]
[1772199028056,0.647838,1960.4,1958.3,1.53192948]
[1772199028252,2.58934307,1961.9,1958.3,1.53192948]
[1772199028253,0.719759,1960.0,1958.8,0.065536]
[1772199028481,0.719759,1960.1,1959.0,3.10255]
[1772199028680,0.719759,1960.0,1958.8,0.065536]
[1772199028896,0.719759,1960.0,1958.9,8.2913]
[1772199029059,0.719759,1960.3,1959.3,13.206165]
[1772199029380,0.719759,1960.6,1959.4,0.065536]
[1772199029596,0.719759,1960.6,1959.0,0.065536]
[1772199029903,0.719759,1960.1,1959.2,1.27603103]
[1772199030385,0.719759,1960.0,1959.2,1.27603103]
[1772199030768,0.719759,1959.9,1959.2,1.27603103]
[1772199031688,0.719759,1959.9,1958.3,0.065536]
[1772199031875,0.719759,1960.2,1958.9,13.759101]
[1772199032183,5.09998248,1960.8,1958.6,1.27642193]
[1772199032184,0.719759,1960.1,1958.8,6.677927]
[1772199032360,0.719759,1960.1,1958.8,6.233385]
[1772199033084,0.719759,1959.9,1958.6,1.27642193]
[1772199033301,0.719759,1959.3,1958.6,1.27642193]
[1772199033456,0.719759,1959.2,1958.0,2.506663]
[1772199033663,0.719759,1959.2,1957.9,1.27687828]
[1772199033859,0.719759,1959.2,1958.1,1.27674786]
[1772199034173,0.719759,1959.2,1958.2,3.016357]
[1772199034372,0.719759,1959.3,1958.2,3.016357]
[1772199034682,0.719759,1959.5,1958.4,11.904453]
[1772199034863,0.719759,1959.5,1958.5,0.065536]
[1772199035066,9.02755249,1961.3,1958.7,0.065536]
[1772199035273,10.30223695,1961.3,1958.9,0.065536]
[1772199035480,1.27468446,1961.3,1959.0,7.666766]
[1772199035681,1.27468446,1961.3,1959.0,5.042121]
[1772199035879,1.27468446,1961.3,1959.5,12.144258]
[1772199036189,1.27468446,1961.3,1959.5,5.739238]
[1772199036365,1.27468446,1961.3,1959.5,2.891705]
[1772199036678,3.935574,1961.1,1959.4,1.27590078]
[1772199036877,0.18685624,1960.9,1959.4,1.27590078]
[1772199037077,0.001,1960.0,1959.4,1.27590078]
[1772199037386,1.27468446,1961.3,1959.5,0.065536]
[1772199037575,1.27468446,1961.3,1959.4,1.27590078]
[1772199037781,0.065536,1961.3,1959.5,2.774233]
[1772199037961,0.18685624,1961.2,1959.2,5.10360314]
[1772199038290,0.064729,1959.8,1959.0,1.2761613]
[1772199038458,0.064729,1959.8,1958.9,1.27728932]
[1772199039297,0.064729,1959.6,1958.9,1.27728932]
[1772199039602,2.106767,1961.2,1959.0,8.798687]
[1772199039760,0.065536,1960.8,1959.0,2.394]
[1772199039964,1.52738204,1960.8,1959.1,1.27609616]
[1772199040663,5.62939224,1960.4,1958.9,0.0011]
[1772199040970,0.25239224,1960.2,1958.9,1.27731932]
[1772199041275,0.18685624,1959.9,1958.8,0.0011]
[1772199041480,0.25239224,1960.3,1958.8,0.0011]
[1772199041674,0.18685624,1960.1,1958.8,0.0011]
[1772199041886,1.27564037,1959.8,1958.8,0.0011]
[1772199042074,0.18685624,1959.7,1958.8,0.0011]
[1772199042574,0.25239224,1959.7,1958.8,0.0011]
[1772199042777,0.25239224,1959.7,1957.6,1.27707396]
[1772199043368,0.25239224,1959.5,1957.6,1.27707396]
[1772199043998,0.25239224,1959.3,1957.2,6.546343]
[1772199044174,0.18685624,1959.1,1957.1,1.27740023]
[1772199044376,0.18685624,1958.8,1957.1,1.27740023]
[1772199045570,8.670995,1959.3,1957.2,5.177711]
[1772199045795,0.18685624,1959.1,1957.2,3.269935]
[1772199046198,0.18685624,1958.9,1957.3,1.2772697]
[1772199046489,0.25239224,1958.9,1956.9,1.27753078]
[1772199047065,0.25239224,1958.9,1956.3,0.0011]
[1772199047273,0.065536,1958.7,1956.4,1.27782312]
[1772199047494,0.25239224,1958.4,1956.3,1.27897272]
[1772199047694,0.25239224,1958.0,1956.3,0.0011]
[1772199047876,0.065536,1957.6,1956.3,1.279018]
[1772199048076,1.2772697,1957.3,1956.0,0.0011]
[1772199048283,0.18685624,1957.2,1956.0,0.0011]
[1772199048807,1.2772697,1957.3,1956.0,0.0011]
[1772199049104,1.2772697,1957.3,1956.4,0.0011]
[1772199050168,1.27707396,1957.6,1956.4,0.0011]
[1772199051399,1.27705095,1957.7,1956.4,0.0011]
[1772199051774,0.18685624,1957.6,1956.4,0.0011]
[1772199052881,1.27705095,1957.7,1956.4,0.0011]
[1772199053171,0.18685624,1957.4,1956.0,0.0011]
[1772199053493,3.72967,1957.1,1955.1,1.27870697]
[1772199053693,3.035521,1956.9,1955.1,1.27870697]
[1772199054007,2.527521,1956.9,1955.1,1.27870697]
[1772199054505,2.254613,1956.9,1955.2,1.753]
[1772199054702,0.18685624,1957.3,1955.3,10.957657]
[1772199054907,0.065536,1957.0,1955.4,1.27851079]
[1772199055089,0.065536,1957.0,1955.5,1.753]
[1772199055288,0.065536,1957.0,1955.6,1.753]
[1772199055486,0.065536,1957.0,1955.7,1.753]
[1772199055685,0.065536,1957.0,1955.4,1.27851079]
[1772199056012,0.065536,1957.0,1955.5,1.752]
[1772199056374,0.065536,1957.0,1955.4,1.27851079]
[1772199056582,0.065536,1957.0,1955.5,1.751]
[1772199056988,1.27753078,1956.9,1955.6,1.27838003]
[1772199057478,0.25239224,1956.8,1955.4,1.75]
[1772199057785,0.25239224,1956.8,1955.2,1.75]
[1772199058001,0.05243079,1955.4,1955.2,1.75]
[1772199058195,1.27753078,1956.9,1955.2,1.75]
[1772199058504,1.27753078,1956.9,1955.3,3.360997]
[1772199058699,1.27753078,1956.9,1955.5,4.501827]
[1772199058895,5.10881974,1957.4,1955.6,1.34391603]
[1772199059104,5.10881974,1957.4,1955.7,6.963172]
[1772199059313,5.10699147,1958.2,1955.9,10.541113]
[1772199059522,6.982838,1958.1,1956.0,4.812]
[1772199059688,0.065536,1958.0,1956.1,2.686281]
[1772199060199,0.065536,1958.0,1955.8,0.065536]
[1772199060200,8.071093,1958.1,1955.8,1.599536]
[1772199060389,0.065536,1958.0,1956.2,1.747]
[1772199060594,0.065536,1958.0,1956.3,12.30011]
[1772199060919,1.5314089,1959.0,1956.7,1.27766136]
[1772199061117,1.27577056,1959.6,1957.0,0.065536]
[1772199061282,1.27577056,1959.6,1957.2,0.065536]
[1772199061589,3.024666,1959.5,1957.3,1.747]
[1772199061789,1.27577056,1959.6,1957.4,2.682131]
[1772199061790,0.001,1958.1,1957.4,2.682131]
[1772199061986,0.001,1958.1,1957.4,2.874458]
[1772199062189,1.27577056,1959.6,1957.6,30.0]
[1772199062711,1.27557528,1959.9,1957.9,0.065536]
[1772199062937,5.10306418,1960.0,1958.2,1.27668266]
[1772199062938,0.001,1960.0,1958.2,1.27668266]
[1772199063217,0.001,1960.0,1958.3,4.017632]
[1772199063384,0.001,1960.0,1958.4,0.065536]
[1772199063587,0.001,1960.0,1958.6,18.626859]
[1772199064011,0.001,1960.0,1958.9,0.065536]
[1772199064222,0.001,1960.0,1958.5,4.814]
[1772199064223,1.27479475,1961.1,1959.1,5.737143]
[1772199064398,1.27479475,1961.1,1959.3,0.065536]
[1772199064598,1.27427493,1961.9,1959.6,14.583402]
[1772199064920,1.27427493,1961.9,1959.7,1.75]
[1772199064921,1.27440485,1961.7,1959.7,1.75]
[1772199065127,30.0,1961.5,1958.5,0.065536]
[1772199065332,30.0,1961.3,1958.0,0.065536]
[1772199065615,0.25239224,1960.7,1958.2,12.364148]
[1772199065814,4.352288,1960.4,1958.4,5.684138]
[1772199066111,1.68,1960.8,1958.4,5.684138]
[1772199066312,0.25239224,1960.7,1958.5,4.812]
[1772199066522,0.065536,1960.7,1958.6,15.779526]
[1772199066727,5.09761941,1961.8,1958.7,0.065536]
[1772199066931,3.617861,1961.6,1958.9,0.065536]
[1772199067231,1.27453479,1961.5,1959.1,16.358999]
[1772199067535,1.27453479,1961.5,1959.5,3.6617]
[1772199067536,0.18685624,1961.4,1959.5,3.6617]
[1772199067721,30.0,1961.3,1959.0,1.2761613]
[1772199067927,0.065536,1961.2,1959.2,10.661124]
[1772199068104,0.18685624,1961.1,1959.2,10.661124]
[1772199068613,2.553489,1961.4,1959.4,4.7625]
[1772199068804,2.553489,1961.4,1959.5,1.75]
[1772199069139,1.27472975,1961.2,1958.9,1.27622645]
[1772199069310,0.25239224,1961.1,1959.0,1.75]
[1772199069510,0.25239224,1960.9,1959.1,1.749]
[1772199069702,1.27472975,1961.2,1958.9,1.27622645]
[1772199069703,0.18685624,1960.6,1958.9,1.27622645]
[1772199069903,0.18685624,1960.6,1959.2,1.749]
[1772199070098,0.18685624,1960.6,1958.9,1.27622645]
[1772199070304,0.18685624,1960.6,1958.6,1.27642193]
[1772199070508,3.646494,1960.5,1958.7,1.748]
[1772199070809,3.646494,1960.5,1958.8,1.748]
[1772199071006,0.25239224,1960.7,1959.0,1.2761613]
[1772199071398,0.25239224,1960.7,1958.9,1.27618599]
[1772199071602,0.25239224,1960.7,1958.4,3.477148]
[1772199071801,0.25239224,1960.5,1958.6,3.53798]
[1772199072046,0.18685624,1960.5,1958.6,3.53798]
[1772199072208,0.18685624,1960.5,1958.4,0.065536]
[1772199072209,0.25239224,1960.5,1958.7,1.747]
[1772199073803,0.25239224,1960.5,1958.4,0.065536]
[1772199073804,0.18685624,1960.3,1958.5,1.2764871]
[1772199074208,0.25239224,1960.3,1958.6,1.747]
[1772199074417,0.25239224,1960.1,1958.7,1.747]
[1772199074613,0.18685624,1959.7,1957.8,1.27799686]
[1772199074836,0.18685624,1959.4,1957.8,0.0011]
[1772199075038,0.18685624,1959.4,1957.8,1.2780428]
[1772199075244,6.77499979,1960.5,1957.9,1.746]
[1772199075245,0.25239224,1959.2,1957.9,1.746]
[1772199075534,0.25239224,1959.2,1957.8,0.0011]
[1772199075750,1.27622645,1958.9,1957.9,1.744]
[1772199075909,1.27622645,1958.9,1957.8,0.0011]
[1772199076238,1.27622645,1958.9,1958.0,1.744]
[1772199076423,1.27622645,1958.9,1958.0,1.743]
[1772199076936,1.27622645,1958.9,1958.0,1.742]
[1772199077330,1.2759659,1959.3,1958.0,1.742]
[1772199077712,1.2759659,1959.3,1957.9,5.10730557]
[1772199077936,1.2759659,1959.3,1958.1,1.74]
[1772199078546,1.2759659,1959.3,1957.9,5.10730557]
[1772199078712,1.2759659,1959.3,1958.2,1.739]
[1772199079112,0.18685624,1959.2,1957.8,0.0011]
[1772199079343,0.25239224,1959.2,1957.8,0.0011]
[1772199079515,0.25239224,1959.2,1957.8,3.01603819]
[1772199079843,1.27609616,1959.1,1957.8,3.01603819]
[1772199080217,1.27609616,1959.1,1957.8,3.01601925]
[1772199080726,0.18685624,1959.0,1957.8,1.7381]
[1772199081540,0.25239224,1959.0,1957.8,0.0011]
[1772199081843,0.18685624,1958.8,1957.8,0.0011]
[1772199082243,0.18685624,1958.8,1957.7,0.0011]
[1772199082453,0.18685624,1958.8,1957.1,5.10939672]
[1772199082454,0.18685624,1958.3,1957.2,1.735]
[1772199082686,0.18685624,1958.3,1956.3,5.936792]
[1772199082944,7.76492,1958.6,1956.5,2.215638]
[1772199083242,0.18685624,1958.4,1956.5,2.215638]
[1772199083443,0.18685624,1958.4,1956.6,1.734]
[1772199083827,0.18685624,1958.2,1956.7,13.80486079]
[1772199084042,0.18685624,1958.2,1956.7,1.27761279]
[1772199084244,0.18685624,1958.2,1956.8,1.734]
[1772199084547,0.18685624,1958.0,1955.7,0.0011]
[1772199084854,1.27661747,1958.3,1955.9,19.963859]
[1772199085060,1.27661747,1958.3,1956.2,0.065536]
[1772199085215,1.27661747,1958.3,1956.3,24.372922]
[1772199085851,1.27661747,1958.3,1956.4,1.27785728]
[1772199086046,1.27661747,1958.3,1956.6,9.286534]
[1772199086251,0.18685624,1958.2,1956.7,1.731]
[1772199086452,0.25239224,1958.2,1956.4,1.27895728]
[1772199086627,0.25239224,1958.2,1956.5,1.73]
[1772199087026,0.25239224,1958.2,1956.6,1.728]
[1772199087027,0.25239224,1958.0,1956.6,1.728]
[1772199087232,0.18685624,1958.0,1956.4,0.0011]
[1772199087526,1.27661747,1958.3,1956.5,1.726]
[1772199087527,0.18685624,1957.6,1956.5,1.726]
[1772199088046,1.2771392,1957.5,1956.4,1.7271]
[1772199088246,0.25239224,1957.4,1956.4,0.0011]
[1772199089971,0.065536,1957.5,1956.4,0.0011]
[1772199090344,0.18685624,1957.4,1956.4,0.0011]
[1772199090773,0.18685624,1957.4,1956.1,0.0011]
[1772199090980,0.18685624,1956.9,1956.1,0.0011]
[1772199092076,1.27759607,1956.8,1956.1,0.0011]
[1772199092288,1.27759607,1956.8,1955.7,0.0011]
[1772199092443,0.25239224,1956.7,1955.7,0.0011]
[1772199093169,0.065536,1956.7,1955.7,0.0011]
[1772199093359,0.25239224,1956.7,1955.7,0.0011]
[1772199093878,0.18685624,1956.6,1955.7,0.0011]
[1772199094244,0.18685624,1956.5,1955.5,0.0011]
[1772199094480,0.25239224,1956.5,1954.2,5.11669255]
[1772199094781,0.065536,1956.5,1954.4,6.139849]
[1772199094954,0.25239224,1956.4,1954.4,3.174756]
[1772199095178,0.25239224,1956.4,1954.0,0.065536]
[1772199095452,0.25239224,1956.4,1954.1,1.702]
[1772199095652,0.25239224,1956.0,1954.2,1.701]
[1772199095849,0.18685624,1955.7,1953.7,5.11744537]
[1772199096052,0.18685624,1955.7,1953.9,5.558276]
[1772199096274,0.18685624,1955.5,1954.0,1.27942681]
[1772199096452,1.27838003,1955.6,1954.1,4.571209]
[1772199096647,1.27838003,1955.6,1954.1,2.551594]
[1772199096854,1.27838003,1955.6,1954.0,1.27942681]
[1772199096855,1.27838003,1955.6,1954.3,5.221208]
[1772199097080,1.27838003,1955.6,1954.4,1.699]
[1772199097278,1.27838003,1955.6,1954.5,1.697]
[1772199097790,5.1119156,1956.3,1954.5,1.697]
[1772199097791,5.11195174,1956.4,1954.6,3.71063]
[1772199098083,5.11195174,1956.4,1954.0,1.27942681]
[1772199098272,0.25239224,1956.0,1954.1,1.694]
[1772199098460,0.18685624,1956.0,1954.2,4.260036]
[1772199098663,1.27798793,1956.2,1954.3,21.679189]
[1772199098847,1.27798793,1956.2,1954.3,11.25474]
[1772199098848,0.25239224,1956.1,1954.3,11.25474]
[1772199099051,1.27798793,1956.2,1954.5,10.432691]
[1772199099280,1.27798793,1956.2,1954.7,15.72512]
[1772199099481,1.27798793,1956.2,1954.7,9.257818]
[1772199099654,1.27798793,1956.2,1954.8,1.691]
[1772199100366,5.11195174,1956.3,1954.9,1.27883779]
[1772199100570,5.11195174,1956.3,1955.0,1.688]
[1772199100770,0.25239224,1956.3,1955.0,1.688]
[1772199100967,0.18685624,1956.3,1955.1,1.688]
[1772199101181,0.18685624,1956.3,1955.1,1.686]
[1772199101347,0.18685624,1956.3,1954.3,1.27923041]
[1772199101348,0.25239224,1956.3,1954.3,1.27923041]
[1772199101553,0.25239224,1956.3,1954.5,10.722153]
[1772199101851,0.25239224,1956.3,1954.3,1.27923041]
[1772199102051,2.691467,1956.2,1954.6,1.685]
[1772199102286,0.065536,1956.1,1954.4,1.685]
[1772199102588,0.18685624,1955.9,1954.5,1.27909951]
[1772199102952,1.2781186,1956.0,1954.6,1.683]
[1772199104354,1.2781186,1956.0,1954.3,5.11639805]
[1772199104355,0.18685624,1955.7,1954.3,1.27919999]
[1772199104580,1.87339224,1955.7,1954.2,1.2803536]
[1772199104889,1.87339224,1955.7,1954.2,0.0011]
[1772199105387,1.87339224,1955.7,1954.2,1.2803863]
[1772199106264,1.87339224,1955.7,1954.2,0.0011]
[1772199106565,0.065536,1955.5,1954.2,0.0011]
[1772199106775,0.25239224,1955.5,1954.2,0.0011]
[1772199106967,0.18685624,1955.4,1954.2,0.0011]
[1772199107457,0.25239224,1955.5,1954.2,0.0011]
[1772199107867,1.27838003,1955.6,1954.3,1.667]
[1772199108360,5.11352014,1955.7,1954.4,1.666]
[1772199108777,5.11352014,1955.7,1954.2,0.0011]
[1772199108974,5.11352014,1955.7,1954.4,17.193405]
[1772199109157,1.27798793,1956.2,1954.4,16.623465]
[1772199109357,1.27798793,1956.2,1954.6,8.076632]
[1772199109554,0.18685624,1956.1,1954.2,0.0011]
[1772199109859,1.27798793,1956.2,1954.4,8.261765]
[1772199110180,1.27798793,1956.2,1954.4,3.675665]
[1772199110483,1.27798793,1956.2,1954.6,14.21165]
[1772199110654,0.001,1956.6,1954.8,26.226106]
[1772199110851,0.001,1956.6,1954.8,13.929939]
[1772199111055,0.001,1956.6,1955.0,18.28137]
[1772199111257,0.001,1956.6,1955.1,1.66]
[1772199111476,0.001,1956.6,1955.2,5.553477]
[1772199111682,0.001,1956.6,1955.3,1.66]
[1772199111880,0.001,1956.6,1955.0,3.675758]
[1772199112086,0.001,1956.6,1955.4,1.659]
[1772199112259,0.001,1956.6,1954.9,4.254273]
[1772199112460,0.001,1956.6,1955.1,6.070954]
[1772199112688,1.27872666,1956.6,1955.2,1.27864157]
[1772199113188,1.27872666,1956.6,1955.3,1.655]
[1772199113485,1.27872666,1956.6,1955.4,1.653]
[1772199113782,1.27872666,1956.6,1955.5,1.652]
[1772199113952,1.27872666,1956.6,1955.2,1.27864157]
[1772199114153,1.27872666,1956.6,1955.3,1.651]
[1772199114357,1.27872666,1956.6,1955.2,2.93064157]
[1772199114771,0.25339224,1956.6,1954.7,5.11584407]
[1772199114968,0.25339224,1956.6,1954.8,1.651]
[1772199115156,0.18685624,1956.4,1954.8,1.651]
[1772199115355,0.18685624,1956.5,1954.7,5.11584407]
[1772199115593,0.18685624,1956.2,1954.5,1.27909951]
[1772199115771,0.18685624,1956.2,1954.7,1.648]
[1772199116110,10.451923,1956.1,1954.5,2.92609951]
[1772199116386,0.18685624,1956.2,1954.5,2.92609951]
[1772199116560,0.065536,1956.3,1954.6,1.645]
[1772199116761,0.065536,1956.1,1954.7,1.27896863]
[1772199117188,0.18685624,1956.0,1954.7,1.27896863]
[1772199117390,0.18685624,1956.0,1954.8,1.643]
[1772199117888,1.27798793,1956.2,1954.7,1.27896863]
[1772199118067,1.27798793,1956.2,1954.8,1.642]
[1772199118585,0.18685624,1956.1,1954.9,1.639]
[1772199118767,0.18685624,1955.9,1954.5,1.638]
[1772199119087,1.2781186,1956.0,1954.5,1.638]
[1772199119281,0.18685624,1955.9,1954.5,1.638]
[1772199119482,0.18685624,1955.9,1954.5,1.636]
[1772199120197,0.25239224,1955.9,1954.4,1.633]
[1772199120370,1.2781186,1956.0,1954.4,12.614469]
[1772199120568,1.2781186,1956.0,1954.4,1.633]
[1772199120771,1.2781186,1956.0,1954.5,1.27909951]
[1772199121285,1.2781186,1956.0,1954.6,4.311247]
[1772199121587,1.2781186,1956.0,1954.6,18.759699]
[1772199121768,1.2781186,1956.0,1954.5,1.27909951]
[1772199121973,1.2781186,1956.0,1954.6,1.629]
[1772199122565,1.278736,1956.6,1955.0,0.065536]
[1772199122789,0.001,1955.8,1955.1,2.90470697]
[1772199122966,0.001,1955.8,1955.1,1.27870697]
[1772199123173,0.001,1955.8,1955.1,2.90370697]
[1772199123473,0.001,1955.8,1955.2,1.625]
[1772199123997,0.001,1955.8,1955.1,2.90370697]
[1772199124566,0.001,1955.8,1955.0,1.27876173]
[1772199124896,0.001,1955.8,1954.1,1.27929587]
[1772199125068,0.001,1955.8,1954.4,1.623]
[1772199125267,0.001,1955.8,1954.5,1.621]
[1772199126193,0.001,1955.8,1954.6,1.618]
[1772199126601,0.001,1955.8,1954.7,1.617]
[1772199126774,0.001,1955.8,1954.8,18.914444]
[1772199127099,1.27779197,1956.5,1955.1,6.206482]
[1772199127397,1.27779197,1956.5,1955.2,1.616]
[1772199127589,1.2787784,1956.6,1955.2,1.616]
[1772199127791,0.001,1956.6,1955.3,24.9135]
[1772199128101,0.001,1956.6,1955.3,14.201423]
[1772199128593,1.27872815,1956.6,1955.3,4.642879]
[1772199128771,0.001,1956.6,1955.3,3.676992]
[1772199128970,24.157802,1957.7,1955.6,0.065536]
[1772199129172,0.065536,1957.7,1955.6,0.065536]
[1772199129500,1.2769435,1957.8,1955.6,0.065536]
[1772199129702,1.2769435,1957.8,1955.8,0.065536]
[1772199130002,1.2769435,1957.8,1955.9,1.613]
[1772199130975,5.10777403,1958.0,1956.0,1.3436546]
[1772199131175,1.27681307,1958.1,1956.0,1.3436546]
[1772199131176,1.27674786,1958.1,1956.0,1.3436546]
[1772199131606,5.10571213,1958.6,1956.0,1.3436546]
[1772199131802,5.438205,1958.5,1956.0,1.3436546]
[1772199132107,5.067,1958.5,1956.1,1.675536]
[1772199132279,8.606223,1958.5,1956.2,1.609]
[1772199132477,5.10571213,1958.6,1956.3,1.609]
[1772199132478,11.09452,1958.2,1956.3,1.609]
[1772199132673,0.18685624,1958.0,1956.3,1.609]
[1772199133103,1.27687828,1957.9,1956.4,1.27785728]
[1772199133477,1.27687828,1957.9,1956.5,10.462505]
[1772199134104,1.27687828,1957.9,1956.5,9.727305]
[1772199134611,0.001,1957.7,1956.5,9.727305]
[1772199135012,0.001,1957.7,1956.5,9.207315]
[1772199135200,0.001,1957.7,1956.5,1.27777513]
[1772199136612,0.001,1957.7,1956.6,13.659097]
[1772199136908,1.27665559,1958.3,1956.6,13.659097]
[1772199137104,5.10592861,1958.6,1956.8,24.7898]
[1772199137293,5.10592861,1958.6,1957.0,28.386853]
[1772199137498,9.687219,1958.5,1956.7,1.27766136]
[1772199137699,9.687219,1958.5,1956.7,2.87966136]
[1772199137700,17.77830724,1958.4,1956.7,2.87966136]
[1772199138007,0.18685624,1958.1,1956.8,1.602]
[1772199138186,0.065536,1958.2,1956.8,1.602]
[1772199138594,0.065536,1958.2,1956.9,1.599]
[1772199139098,0.065536,1958.5,1956.9,1.599]
[1772199139407,1.27655228,1958.4,1957.0,1.2774655]
[1772199140891,1.14579801,1958.4,1957.1,21.566312]
[1772199141092,5.10467919,1959.0,1957.1,21.566312]
[1772199141501,5.10452106,1959.2,1957.3,8.882186]
[1772199141817,0.001,1959.3,1957.6,0.065536]
[1772199142002,0.001,1959.3,1957.7,30.0]
[1772199142313,1.27697726,1959.3,1957.9,11.060944]
[1772199142515,1.27697726,1959.3,1957.9,2.579657]
[1772199143508,0.001,1959.3,1958.1,7.580461]
[1772199143711,0.001,1959.3,1958.1,5.79498]
[1772199143888,0.001,1959.3,1958.2,1.59]
[1772199144411,0.001,1959.3,1958.0,1.27681307]
[1772199144913,0.001,1959.3,1958.1,1.588]
[1772199145606,0.001,1959.3,1958.2,1.587]
[1772199146406,0.001,1959.3,1958.3,1.582]
[1772199146596,0.001,1959.3,1957.9,1.27674786]
[1772199146803,0.001,1959.3,1958.0,1.581]